[Event "FIJ Cannes 2024"]
[Site "Cannes"]
[Date "2024.02.20"]
[Round "1.1"]
[White "Puranik, Abhimanyu"]
[Black "Mattenberger, Matthias"]
[Result "1-0"]
[ECO "B90"]
[WhiteElo "2645"]
[BlackElo "2221"]
[Annotator "TA"]
[PlyCount "65"]
[EventDate "2024.02.20"]
[EventType "swiss"]
[EventCountry "FRA"]
[SourceTitle "playchess.com"]
[Source "ChessBase"]
[SourceQuality "1"]
[TimeControl "40/5400+30:1800+30"]

{[%evp 12,65,16,1,8,8,34,16,33,41,41,33,104,91,135,120,135,124,146,149,213,214,270,232,270,252,250,250,351,342,355,408,400,381,339,243,368,385,484,331,384,378,373,329,545,335,945,345,1160,1140,29996,1737,29997,29998,29998,29999]} 1. e4 {[%emt 1:31:00]} c5 {[%emt 1:31:00]} 2. Nf3 {[%emt 0:00:00]} d6 {[%emt 0:00:30]} 3. d4 {[%emt 0:00:00]} cxd4 {[%emt 0:00:30]} 4. Nxd4 {[%emt 0:00:00]} Nf6 {[%emt 0:00:30]} 5. Nc3 {[%emt 0:00:00]} a6 {[%emt 0:00:30]} 6. h3 {[%emt 0:02:30]} e5 {[%emt 0:00:30]} 7. Nb3 {[%emt 0:00:00]} Be6 {[%emt 0:00:30]} 8. Be3 {[%emt 0:00:00]} h5 {[%emt 0:00:30]} 9. Qd2 {[%emt 0:01:30]} Nbd7 {[%emt 0:00:30] The position is equal.} 10. O-O-O {[%emt 0:00:00]} b5 {[%emt 0:00:30]} 11. Kb1 {[%emt 0:00:00]} b4 {[%emt 0:00:30]} (11... Rb8 $14) 12. Nd5 $16 {[%emt 0:00:00]} a5 {[%emt 0:00:30] [#]} 13. Bb5 $1 {[%emt 0:00:00]} Bxd5 {[%emt 0:00:30]} 14. exd5 {[%emt 0:02:30]} Be7 {[%emt 0:00:30]} 15. Bc6 {[%emt 0:00:00] White is much more active.} Rb8 {[%emt 0:00:30] [#]} (15... O-O $16) 16. g4 $1 $18 {[%emt 0:01:00][%mdl 512]} Kf8 {[%emt 0:00:30]} (16... O-O 17. Qe2) 17. f4 {[%emt 0:00:00]} Ne4 {[%emt 0:00:30]} 18. Qg2 {[%emt 0:00:00]} exf4 {[%emt 0:00:30]} 19. Bxf4 {[%emt 0:00:00] A strong pair of Bishops.} Ndc5 {[%emt 0:00:00]} (19... Nec5 $142 20. Nd4 a4) 20. Rde1 {[%emt 0:00:00]} a4 {[%emt 0:01:00] Black is weak on the light squares} 21. Nxc5 {[%emt 0:00:00]} Nxc5 {[%emt 0:00:30]} 22. g5 {[%emt 0:00:00]} b3 {[%emt 0:00:30]} 23. Re3 {[%emt 0:03:30]} bxa2+ {[%emt 0:00:30]} (23... bxc2+ $142 24. Qxc2 Bxg5) 24. Kxa2 {[%emt 0:00:30]} Qb6 {[%emt 0:00:30][%csl Gb8][%cal Rb6b2]} 25. c4 {[%emt 0:00:30]} Qb4 {[%emt 0:00:30]} 26. Qc2 {[%emt 0:00:00] Threatens to win with Rhe1.} g6 {[%emt 0:00:30]} 27. Rf1 {[%emt 0:01:00] Qe2 would now be deadly.} Rg8 $2 {[%emt 0:00:30]} (27... Qb3+ 28. Qxb3 (28. Rxb3 $2 axb3+ 29. Kb1 bxc2+ $19) 28... Rxb3) 28. h4 {[%emt 0:00:30] Hoping for Qe2.} Rb6 $2 {[%emt 0:00:30]} (28... Qb3+ 29. Qxb3 (29. Rxb3 $2 {is the wrong capture.} axb3+ 30. Kb1 bxc2+ $19) 29... Rxb3) 29. Rf2 $2 {[%emt 0:00:00]} (29. Qe2) 29... Nb3 $2 {[%emt 0:00:30]} (29... Qb3+ 30. Qxb3 (30. Rxb3 $2 {perishes.} axb3+ $19) 30... Rxb3 31. Rxe7 (31. Rxb3 axb3+ 32. Ka3 Nd3 $16) 31... Kxe7 32. Re2+ Kd8 33. Bxd6 Nd3) 30. Qe4 {[%emt 0:01:00]} Nd2 {[%emt 0:00:30]} 31. Qxe7+ {[%emt 0:00:00]} Kg7 {[%emt 0:00:30] [#]} 32. Be5+ $1 {[%emt 0:00:00]} dxe5 {[%emt 0:00:00]} (32... Kh7 33. Qxf7+) 33. Rxf7+ {[%emt 0:00:00] White took control after the opening.   Weighted Error Value: White=0.46/Black=0.53.  Mistake:       	White=1     	Black=7      Inaccurate:     	White=2     	Black=3      OK:         	White=10    	Black=4      Best:        	White=1     	Black=1      Strong:       	White=1     	---} 1-0

[Event "FIJ Cannes 2024"]
[Site "Cannes"]
[Date "2024.02.20"]
[Round "1.2"]
[White "Urbani, Gabriel"]
[Black "Zeng, Chongsheng"]
[Result "0-1"]
[ECO "B12"]
[WhiteElo "2199"]
[BlackElo "2597"]
[Annotator "RC"]
[PlyCount "138"]
[EventDate "2024.02.20"]
[EventType "swiss"]
[EventCountry "FRA"]
[SourceTitle "playchess.com"]
[Source "ChessBase"]
[SourceQuality "1"]
[TimeControl "40/5400+30:1800+30"]

1. e4 {[%emt 0:00:04]} c6 {[%emt 0:00:54]} 2. d4 {[%emt 0:00:10]} d5 {[%emt 0:00:06]} 3. e5 {[%emt 0:03:11]} Bf5 {[%emt 0:00:25]} 4. h4 {[%emt 0:00:17]} h5 {[%emt 0:01:32]} 5. Bd3 {[%emt 0:00:38]} Bxd3 {[%emt 0:00:07]} 6. Qxd3 {[%emt 0:00:05]} Qa5+ {[%emt 0:00:05]} 7. Bd2 {[%emt 0:12:52]} Qa6 {[%emt 0:00:13]} 8. e6 {[%emt 0:04:34]} Qxd3 {[%emt 0:02:58]} 9. exf7+ {[%emt 0:00:06]} Kxf7 {[%emt 0:00:12]} 10. cxd3 {[%emt 0:00:04]} Nd7 {[%emt 0:01:05]} 11. Nf3 {[%emt 0:00:24]} Nh6 {[%emt 0:03:43]} 12. Nc3 {[%emt 0:06:20]} Nf5 {[%emt 0:03:58]} 13. Ne2 {[%emt 0:02:19]} g6 {[%emt 0:01:43]} 14. Ng5+ {[%emt 0:06:10]} Kf6 {[%emt 0:00:21]} 15. Bf4 {[%emt 0:04:11]} Bh6 {[%emt 0:00:33]} 16. Be5+ {[%emt 0:01:37]} Nxe5 {[%emt 0:00:02]} 17. dxe5+ {[%emt 0:00:07]} Kg7 {[%emt 0:00:38]} 18. Nf4 {[%emt 0:01:16]} Nd4 {[%emt 0:00:28]} 19. Nfe6+ {[%emt 0:06:37]} Nxe6 {[%emt 0:00:03]} 20. Nxe6+ {[%emt 0:00:07]} Kf7 {[%emt 0:00:11]} 21. Ng5+ {[%emt 0:00:28]} Bxg5 {[%emt 0:00:13]} 22. hxg5 {[%emt 0:00:05]} Ke6 {[%emt 0:01:36]} 23. f4 {[%emt 0:00:41]} c5 {[%emt 0:00:32]} 24. Ke2 {[%emt 0:03:28]} Rac8 {[%emt 0:02:50]} 25. Rac1 {[%emt 0:01:40]} Kf5 {[%emt 0:00:48]} 26. Kf3 {[%emt 0:04:21]} Rc6 {[%emt 0:04:59]} 27. Rhe1 {[%emt 0:06:56]} e6 {[%emt 0:01:04]} 28. g3 {[%emt 0:01:59]} Rhc8 {[%emt 0:02:12]} 29. b3 {[%emt 0:10:41]} b5 {[%emt 0:03:36]} 30. Rc2 {[%emt 0:06:09]} c4 {[%emt 0:05:44]} 31. dxc4 {[%emt 0:01:58]} dxc4 {[%emt 0:00:09]} 32. Rec1 {[%emt 0:00:49]} Rd8 {[%emt 0:04:58]} 33. bxc4 {[%emt 0:04:48]} Rd3+ {[%emt 0:00:47]} 34. Kf2 {[%emt 0:00:23]} bxc4 {[%emt 0:09:48]} 35. Rxc4 {[%emt 0:00:07]} Ra6 {[%emt 0:00:58]} 36. a4 {[%emt 0:02:05]} Kg4 {[%emt 0:05:50]} 37. R1c3 {[%emt 0:02:04]} Rxc3 {[%emt 0:00:34]} 38. Rxc3 {[%emt 0:00:02]} Rxa4 {[%emt 0:00:02]} 39. Rc6 {[%emt 0:00:16]} Kf5 {[%emt 0:12:56]} 40. Rc7 {[%emt 0:00:44]} Ra2+ {[%emt 0:00:39]} 41. Kf3 {[%emt 0:33:40]} Ra3+ {[%emt 0:30:05]} 42. Kf2 {[%emt 0:00:06]} a5 {[%emt 0:01:22]} 43. Rc6 {[%emt 0:04:32]} h4 {[%emt 0:14:43]} 44. gxh4 {[%emt 0:00:33]} Rh3 {[%emt 0:00:08]} 45. Rc4 {[%emt 0:02:43]} Rxh4 {[%emt 0:01:48]} 46. Kg3 {[%emt 0:00:08]} Rh1 {[%emt 0:01:07]} 47. Ra4 {[%emt 0:00:52]} Rg1+ {[%emt 0:00:50]} 48. Kf2 {[%emt 0:00:25]} Rb1 {[%emt 0:00:48]} 49. Rxa5 {[%emt 0:00:04]} Kxf4 {[%emt 0:00:06]} 50. Ra4+ {[%emt 0:01:01]} Kxg5 {[%emt 0:00:32]} 51. Ra8 {[%emt 0:00:14]} Rb5 {[%emt 0:01:31]} 52. Kf3 {[%emt 0:00:24]} Rxe5 {[%emt 0:00:04]} 53. Re8 {[%emt 0:00:10]} Rf5+ {[%emt 0:01:10]} 54. Kg3 {[%emt 0:00:01]} Rf6 {[%emt 0:00:51]} 55. Re7 {[%emt 0:00:45]} Kf5 {[%emt 0:00:27]} 56. Kf3 {[%emt 0:00:12]} Rf8 {[%emt 0:00:11]} 57. Rg7 {[%emt 0:00:51]} g5 {[%emt 0:01:15]} 58. Re7 {[%emt 0:01:02]} e5 {[%emt 0:00:57]} 59. Rg7 {[%emt 0:00:31]} e4+ {[%emt 0:01:08]} 60. Kg3 {[%emt 0:00:51]} Re8 {[%emt 0:00:31]} 61. Rf7+ {[%emt 0:00:15]} Kg6 {[%emt 0:00:08]} 62. Rf2 {[%emt 0:00:15]} e3 {[%emt 0:00:22]} 63. Re2 {[%emt 0:00:10]} Kf5 {[%emt 0:00:07]} 64. Kf3 {[%emt 0:00:19]} g4+ {[%emt 0:00:25]} 65. Kg2 {[%emt 0:01:05]} Kf4 {[%emt 0:00:07]} 66. Kf1 {[%emt 0:00:13]} Rd8 {[%emt 0:00:15]} 67. Re1 {[%emt 0:00:31]} Kf3 {[%emt 0:00:14]} 68. Kg1 {[%emt 0:00:48]} e2 {[%emt 0:00:11]} 69. Kh2 {[%emt 0:00:36]} g3+ {[%emt 0:00:18]} 0-1

[Event "FIJ Cannes 2024"]
[Site "Cannes"]
[Date "2024.02.20"]
[Round "1.3"]
[White "Sasikiran, Krishnan"]
[Black "Rohit S"]
[Result "1-0"]
[ECO "E04"]
[WhiteElo "2586"]
[BlackElo "2174"]
[Annotator "TA"]
[PlyCount "83"]
[EventDate "2024.02.20"]
[EventType "swiss"]
[EventCountry "FRA"]
[SourceTitle "playchess.com"]
[Source "ChessBase"]
[SourceQuality "1"]
[TimeControl "40/5400+30:1800+30"]

{[%evp 11,83,19,10,0,40,24,44,23,30,28,28,16,70,72,73,75,106,120,117,97,121,120,120,123,110,108,125,121,144,122,139,139,162,167,182,185,233,235,214,225,231,177,173,189,197,180,180,191,212,177,179,147,269,254,269,256,227,167,164,150,152,66,565,527,559,564,594,584,577,562,953,930,29984,5645]} 1. d4 {[%emt 0:01:08]} d5 {[%emt 0:00:23][%cal Bd7d5,Bd5c4][%mdl 32]} 2. c4 {[%emt 0:00:20]} e6 {[%emt 0:00:06]} 3. Nf3 {[%emt 0:01:09]} Nf6 {[%emt 0:00:58]} 4. g3 {[%emt 0:01:27]} dxc4 {[%emt 0:00:18]} 5. Bg2 {[%emt 0:00:33]} c6 {[%emt 0:00:10]} 6. Ne5 {[%emt 0:08:58]} Bb4+ {[%emt 0:00:11]} 7. Bd2 {[%emt 0:03:24]} Be7 {[%emt 0:03:48]} 8. e3 {[%emt 0:03:30][%cal Ob1a3]} O-O {[%emt 0:07:09]} 9. Nxc4 {[%emt 0:05:17] White is slightly better.} Nbd7 {[%emt 0:06:33]} 10. O-O {[%emt 0:03:30]} Qc7 {[%emt 0:06:59]} 11. e4 {[%emt 0:15:15]} Nb6 {[%emt 0:17:23]} (11... e5 $11) 12. Bf4 $14 {[%emt 0:07:45]} Qd8 {[%emt 0:01:02]} 13. Nba3 {[%emt 0:03:13]} Bxa3 {[%emt 0:07:18]} 14. Nxa3 {[%emt 0:01:16]} Qe7 {[%emt 0:00:32]} 15. Qc2 {[%emt 0:05:31]} Nfd7 {[%emt 0:04:22]} 16. Be3 {[%emt 0:03:48]} Nf6 {[%emt 0:03:24]} 17. h3 {[%emt 0:04:19]} Rd8 {[%emt 0:03:04]} 18. Rad1 {[%emt 0:03:15]} Bd7 {[%emt 0:01:50]} 19. Qc5 {[%emt 0:04:41]} Re8 {[%emt 0:02:44]} 20. f4 {[%emt 0:06:02] White is more active.} Rad8 {[%emt 0:03:11]} 21. b3 {[%emt 0:02:51]} Bc8 {[%emt 0:01:10]} 22. Qa5 {[%emt 0:03:10]} Bd7 {[%emt 0:05:09]} 23. g4 {[%emt 0:06:16]} (23. Qxa7 Nbd5 24. exd5 Ra8 $16) 23... Nc8 {[%emt 0:02:21]} (23... h6 $142 24. Bc1 (24. Qxa7 Nbd5 $16) 24... Ra8) 24. Nc4 $18 {[%emt 0:00:23]} Nd5 {[%emt 0:02:42]} 25. Bc1 {[%emt 0:02:32][%cal Oc1a3] Black must now prevent Ba3!} Ndb6 {[%emt 0:01:38]} 26. Ne3 {[%emt 0:01:53]} f5 {[%emt 0:01:17]} 27. gxf5 {[%emt 0:01:21]} (27. exf5 exf5 28. Nxf5 Bxf5 29. Qxf5 Qh4 $16) 27... exf5 {[%emt 0:00:20]} 28. Nxf5 {[%emt 0:00:28]} Bxf5 {[%emt 0:06:46]} 29. Qxf5 {[%emt 0:00:03]} Nd6 {[%emt 0:00:04]} 30. Qg4 {[%emt 0:00:26] [#] f5 would now be deadly.} (30. Qe5 Qd7 $15) 30... h5 {[%emt 0:01:48]} (30... Nxe4 $2 {loses.} 31. Rfe1 $18) 31. Qg6 {[%emt 0:01:02]} Qf7 {[%emt 0:00:23]} (31... Qf6 $16 {was worth a try.} 32. Qxf6 (32. Qxh5 Nxe4 33. Rd3 Nd5 $11) 32... gxf6) 32. Qxf7+ {[%emt 0:00:32]} Kxf7 {[%emt 0:00:01]} 33. Rfe1 {[%emt 0:00:25]} Rd7 {[%emt 0:00:17]} 34. a4 {[%emt 0:01:05][%cal Ba2a4,Ba4a5][%mdl 32] [#] Strongly threatening a5.} Rde7 {[%emt 0:00:45]} 35. e5 $36 {[%emt 0:00:36][%mdl 2048] Keeping Black busy.} Nf5 {[%emt 0:00:06]} 36. d5 {[%emt 0:00:30]} (36. Ba3 $16 {[%cal Oa4a5] aiming for a5!} Re6 37. Be4) 36... cxd5 $2 {[%emt 0:00:40][%mdl 8192] This costs Black the game.} ({Better is} 36... Nxd5 $14 37. Kf2 (37. Bxd5+ cxd5 38. Rxd5 Ke6 $16) 37... g6) 37. a5 {[%emt 0:00:24]} Nc8 {[%emt 0:01:02]} 38. Bxd5+ {[%emt 0:00:22]} Kg6 {[%emt 0:00:23] Black is weak on the light squares} 39. Ba3 {[%emt 0:00:45]} Rc7 {[%emt 0:00:29]} 40. Be4 {[%emt 0:00:09] A strong pair of Bishops.} Rc3 {[%emt 0:00:30]} 41. Kf2 {[%emt 0:30:29] Hoping for Rg1+.} Rxb3 {[%emt 0:30:17]} 42. Rg1+ {[%emt 0:00:30] Weighted Error Value: White=0.11 (very precise) /Black=0.49.  Loses game:     	---       	Black=1      Mistake:       	White=1     	Black=3      Inaccurate:     	---       	Black=4      OK:         	White=17    	Black=7      Best:        	---       	Black=5} 1-0

[Event "FIJ Cannes 2024"]
[Site "Cannes"]
[Date "2024.02.20"]
[Round "1.4"]
[White "Shukhman, Anna"]
[Black "Li, Di"]
[Result "0-1"]
[ECO "B09"]
[WhiteElo "2213"]
[BlackElo "2563"]
[Annotator "TA"]
[PlyCount "118"]
[EventDate "2024.02.20"]
[EventType "swiss"]
[EventCountry "FRA"]
[SourceTitle "playchess.com"]
[Source "ChessBase"]
[SourceQuality "1"]
[TimeControl "40/5400+30:1800+30"]

{[%evp 27,118,0,0,-10,0,0,0,0,0,-3,0,0,0,0,0,0,0,0,0,0,0,0,0,-42,-47,-43,-28,-44,0,-22,0,-40,-14,-15,-12,-27,-5,-34,-39,-40,-21,-23,-19,-24,-18,-18,-26,-106,-114,-165,-155,-124,-153,-167,-86,-74,-79,-261,-96,-84,-88,-88,-112,-159,-33,-526,-134,-137,-8,-8,-8,-389,-345,-1779,-1474,-5249,-5085,-12809,-7952,-5704,-6721,-29973,-29975,-29975,-29976,-29977,-29977,-29977,-29977,-29978,-29979,-29980,-29981]} 1. e4 {[%emt 0:00:03]} g6 {[%emt 0:00:39]} 2. d4 {[%emt 0:00:06]} Bg7 {[%emt 0:00:28]} 3. Nc3 {[%emt 0:00:03]} d6 {[%emt 0:00:29]} 4. f4 {[%emt 0:00:04]} Nf6 {[%emt 0:00:35]} 5. Nf3 {[%emt 0:00:04]} O-O {[%emt 0:00:05]} 6. Bd3 {[%emt 0:00:03]} Na6 {[%emt 0:00:49]} 7. O-O {[%emt 0:01:55]} c5 {[%emt 0:00:46]} 8. d5 {[%emt 0:02:39]} Nc7 {[%emt 0:04:16]} 9. a4 {[%emt 0:00:56]} b6 {[%emt 0:07:16]} 10. Bc4 {[%emt 0:11:14]} e6 {[%emt 0:08:10]} 11. dxe6 {[%emt 0:22:30]} Bxe6 {[%emt 0:00:07]} 12. Bxe6 {[%emt 0:00:03]} fxe6 {[%emt 0:00:20]} 13. f5 {[%emt 0:01:54]} gxf5 {[%emt 0:28:12]} 14. exf5 {[%emt 0:00:08]} d5 {[%emt 0:00:36]} 15. Bg5 {[%emt 0:16:32]} h6 {[%emt 0:11:34]} 16. Bf4 {[%emt 0:01:29]} d4 {[%emt 0:17:25]} 17. Bxc7 $1 {[%emt 0:03:05]} Qxc7 {[%emt 0:00:02]} 18. Nb5 {[%emt 0:00:06]} Qf4 {[%emt 0:04:03]} 19. Qe1 {[%emt 0:37:06]} Ng4 $1 {[%emt 0:01:53]} (19... exf5 $2 20. Nfxd4 Qg4 21. h3 $18 (21. Nxf5 Rfe8 $16)) 20. Qxe6+ {[%emt 0:00:00]} (20. fxe6 Ne3 21. Rf2 (21. e7 Rf7 $17) 21... Rae8 22. Nxa7 Rxe6 $17) 20... Kh8 {[%emt 0:00:44]} 21. Nd6 {[%emt 0:00:00]} Qe3+ {[%emt 0:06:07]} 22. Kh1 {[%emt 0:00:00]} Rf6 {[%emt 0:00:14]} 23. Qd5 {[%emt 0:00:00]} (23. Qd7 $5 Raf8 $8 24. Rae1 $11) 23... Raf8 {[%emt 0:00:03]} 24. Rae1 {[%emt 0:00:00]} Qf4 {[%emt 0:00:24]} 25. Qe4 {[%emt 0:00:00]} (25. Re6 $2 Ne3 26. Qc6 (26. g3 $2 Qg4 $19) 26... Nxf1 $19) 25... Qxe4 {[%emt 0:01:05]} 26. Nxe4 {[%emt 0:00:00]} (26. Rxe4 $2 {too greedy.} Ne3 (26... Rxd6 27. Rxg4 Rxf5 28. Re1 $15) 27. Rxe3 dxe3 $19) 26... Rxf5 {[%emt 0:00:56]} 27. Ng3 {[%emt 0:00:00]} Rd5 {[%emt 0:02:27]} 28. Re7 {[%emt 0:00:00]} Ne3 {[%emt 0:01:18]} 29. Rf2 {[%emt 0:00:00]} (29. Rc1 $5) 29... c4 {[%emt 0:00:17]} 30. Rd2 {[%emt 0:00:00]} Rfd8 {[%emt 0:02:46]} 31. h3 {[%emt 0:01:54]} Kg8 {[%emt 0:01:03]} 32. Nh5 {[%emt 0:02:05]} Rxh5 {[%emt 0:00:40]} 33. Rxe3 {[%emt 0:00:05]} Rhd5 {[%emt 0:00:36]} 34. Re4 {[%emt 0:00:18]} a6 {[%emt 0:00:27]} 35. Kg1 {[%emt 0:00:08]} b5 {[%emt 0:00:14]} 36. axb5 {[%emt 0:01:16]} axb5 {[%emt 0:00:04]} 37. Kf2 {[%emt 0:01:03]} (37. b3 $11 {remains equal.}) 37... d3 $17 {[%emt 0:00:41]} 38. cxd3 {[%emt 0:00:12]} (38. c3 $17) 38... Rxd3 $19 {[%emt 0:00:06]} 39. Rde2 {[%emt 0:00:07]} Rb3 {[%emt 0:00:30]} 40. Ne5 {[%emt 0:00:59]} Rf8+ {[%emt 0:00:22]} (40... Kh7 $19 41. h4 Rd5 42. Nxc4 bxc4 43. Rxc4 Bd4+ (43... Bxb2 $2 44. g4 $19) 44. Kf1 Rd7 (44... Bxb2 $2 45. g4 $19)) 41. Ke1 $17 {[%emt 0:30:39]} Re8 {[%emt 0:31:36]} 42. g4 $2 {[%emt 0:02:06]} (42. Kd1 $17) 42... Rxe5 $2 {[%emt 0:00:29]} (42... Rxh3 $19 {White must now prevent ...Rh1+.} 43. Kd2 Kh7) 43. Rxe5 $17 {[%emt 0:00:02]} Bxe5 {[%emt 0:00:06]} 44. Rxe5 {[%emt 0:00:02]} Rxb2 {[%emt 0:00:07]} ({Much weaker is} 44... Rxh3 $6 45. Rxb5 Rh4 46. Rb6 $11) 45. Re6 {[%emt 0:00:49]} ({Better is} 45. Kd1) 45... c3 {[%emt 0:00:40]} ({Black should play} 45... Kg7 $17 {And now ...b4 would win.} 46. Rb6 h5 47. gxh5 Rb3) 46. Rc6 $2 {[%emt 0:01:04][%mdl 8192] [#]} ({Only move:} 46. Kd1 $1 $15) 46... b4 $2 {[%emt 0:00:12]} (46... Rb1+ $1 $19 {has better winning chances.} 47. Ke2 b4) 47. Kd1 $17 {[%emt 0:00:13]} Rd2+ {[%emt 0:00:44]} (47... Rf2 $17 {...b3 is the strong threat.} 48. Kc1 Rf3) 48. Kc1 $11 {[%emt 0:00:03]} Kf7 {[%emt 0:01:14]} (48... Kg7 $5) 49. h4 $2 {[%emt 0:01:07][%mdl 8192]} (49. Rb6 $11) 49... Rd4 {[%emt 0:00:28]} 50. g5 $2 {[%emt 0:00:00]} (50. Rb6) 50... h5 $19 {[%emt 0:00:00]} ({Stronger than} 50... Rxh4 51. gxh6 Rh1+ 52. Kc2 $11) 51. Kc2 {[%emt 0:00:00]} Rxh4 {[%emt 0:00:00]} 52. Kb3 {[%emt 0:00:00]} Rg4 {[%emt 0:00:00]} 53. Rh6 {[%emt 0:00:00]} h4 {[%emt 0:00:00]} 54. Ka4 {[%emt 0:00:00]} Rc4 {[%emt 0:00:00]} 55. Rf6+ {[%emt 0:00:00]} Kg7 {[%emt 0:00:00]} 56. Rf1 {[%emt 0:00:00]} Kg6 {[%emt 0:00:00]} 57. Kb3 {[%emt 0:00:00]} Re4 {[%emt 0:00:00]} 58. Rg1 {[%emt 0:00:00]} h3 {[%emt 0:00:00]} 59. Rh1 {[%emt 0:00:00]} Rh4 {[%emt 0:00:00]} 0-1

[Event "FIJ Cannes 2024"]
[Site "Cannes"]
[Date "2024.02.20"]
[Round "1.5"]
[White "Lemiere, Frederic"]
[Black "Schmit, Vincent"]
[Result "0-1"]
[ECO "A48"]
[WhiteElo "1830"]
[BlackElo "2202"]
[Annotator "RC"]
[PlyCount "80"]
[EventDate "2024.02.20"]
[EventType "swiss"]
[EventCountry "FRA"]
[SourceTitle "playchess.com"]
[Source "ChessBase"]
[SourceQuality "1"]
[TimeControl "40/5400+30:1800+30"]

1. d4 {[%emt 1:31:00]} Nf6 {[%emt 1:31:00]} 2. Nf3 {[%emt 0:00:30]} g6 {[%emt 0:00:30]} 3. c3 {[%emt 0:00:30]} Bg7 {[%emt 0:00:30]} 4. Bf4 {[%emt 0:00:30]} O-O {[%emt 0:00:30]} 5. Nbd2 {[%emt 0:00:30]} d6 {[%emt 0:00:30]} 6. e4 {[%emt 0:00:30]} c5 {[%emt 0:00:30]} 7. dxc5 {[%emt 0:00:30]} dxc5 {[%emt 0:00:30]} 8. Bc4 {[%emt 0:00:30]} b6 {[%emt 0:00:30]} 9. Qe2 {[%emt 0:00:30]} Bb7 {[%emt 0:00:30]} 10. h3 {[%emt 0:00:30]} Nc6 {[%emt 0:00:30]} 11. Bh2 {[%emt 0:00:30]} e6 {[%emt 0:00:30]} 12. O-O {[%emt 0:00:30]} Qe7 {[%emt 0:00:30]} 13. Rfd1 {[%emt 0:00:30]} Rfd8 {[%emt 0:00:30]} 14. Bf4 {[%emt 0:00:30]} h6 {[%emt 0:00:30]} 15. Qe3 {[%emt 0:00:30]} Kh7 {[%emt 0:00:30]} 16. Be2 {[%emt 0:00:30]} Na5 {[%emt 0:00:30]} 17. Ne5 {[%emt 0:00:30]} Nd7 {[%emt 0:00:30]} 18. Nec4 {[%emt 0:00:30]} e5 {[%emt 0:00:30]} 19. Bg3 {[%emt 0:00:30]} Nc6 {[%emt 0:00:30]} 20. Nf3 {[%emt 0:00:30]} Nf8 {[%emt 0:00:30]} 21. Rxd8 {[%emt 0:00:30]} Rxd8 {[%emt 0:00:30]} 22. Rd1 {[%emt 0:00:30]} Rxd1+ {[%emt 0:00:30]} 23. Bxd1 {[%emt 0:00:30]} b5 {[%emt 0:00:30]} 24. Ncd2 {[%emt 0:00:30]} Ne6 {[%emt 0:00:30]} 25. Bc2 {[%emt 0:00:30]} h5 {[%emt 0:00:30]} 26. Qe2 {[%emt 0:00:30]} a6 {[%emt 0:00:30]} 27. Nf1 {[%emt 0:00:30]} Nf4 {[%emt 0:00:30]} 28. Qd1 {[%emt 0:00:30]} Qd8 {[%emt 0:00:30]} 29. Ne3 {[%emt 0:00:30]} Qxd1+ {[%emt 0:00:30]} 30. Bxd1 {[%emt 0:00:30]} Nd3 {[%emt 0:00:30]} 31. b3 {[%emt 0:00:30]} f6 {[%emt 0:00:30]} 32. Kf1 {[%emt 0:00:30]} b4 {[%emt 0:00:30]} 33. Nd5 {[%emt 0:00:30]} Nc1 {[%emt 0:00:30]} 34. Ke1 {[%emt 0:00:30]} Nxa2 {[%emt 0:00:30]} 35. c4 {[%emt 0:00:30]} Kg8 {[%emt 0:00:30]} 36. Ke2 {[%emt 0:00:30]} Kf7 {[%emt 0:00:30]} 37. Ne1 {[%emt 0:00:30]} Nd4+ {[%emt 0:00:30]} 38. Kf1 {[%emt 0:00:30]} Nc1 {[%emt 0:00:30]} 39. f3 {[%emt 0:00:30]} Bxd5 {[%emt 0:00:30]} 40. exd5 {[%emt 0:00:30]} Ndxb3 {[%emt 0:00:30]} 0-1